fUSD/lending_fUSD_20241022
["ID","MTS","AMOUNT","RATE_DAILY","PERIOD"]
[340634771,1729566632367,-372.09201873,0.000109,2]
[340634772,1729566632376,-197.99798127,0.000109,2]
[340634773,1729566632387,-406.77852015,0.000109,2]
[340634774,1729566632398,-3590.73489858,0.000109,2]
[340634775,1729566632407,-12207.3205245,0.000109,2]
[340634776,1729566632418,-8525.9801755,0.000109,2]
[340634777,1729566632427,-328.76786023,0.000109,2]
[340634778,1729566632437,-1731.31993977,0.000109,2]
[340634779,1729566632446,-16107.30550137,0.000109,2]
[340634780,1729566632457,-658.25,0.000109,2]
[340634785,1729566638084,-281.55,0.000109,2]
[340634786,1729566638095,-4009.83074,0.000109,2]
[340634787,1729566638107,-6628.30439943,0.000109,2]
[340634788,1729566638120,-592.08569065,0.000109,2]
[340634789,1729566638298,-1177.0,0.000109,2]
[340634790,1729566638309,-1851.34130064,0.000109,2]
[340634791,1729566638320,-729.82228752,0.000109,2]
[340634792,1729566638331,-289.4002629,0.000109,2]
[340634793,1729566638341,-464.49215407,0.000109,2]
[340634794,1729566638352,-2183.16426548,0.000109,2]
[340634795,1729566638364,-6944.03529794,0.000109,2]
[340634796,1729566638373,-1297.253,0.000109,2]
[340634797,1729566638383,-6500.6216,0.000109,2]
[340634798,1729566638391,-1574.96801933,0.000109,2]
[340634799,1729566638402,-450.87290596,0.000109,2]
[340634800,1729566638413,-13601.65539121,0.000109,2]
[340634801,1729566638424,-16381.48089212,0.000109,2]
[340634802,1729566638435,-6270.61805585,0.000109,2]
[340634803,1729566638504,-273.2828905,0.000109,2]
[340634804,1729566638516,-594.5,0.000109,2]
[340634805,1729566640101,-1527.510008,0.000109,2]
[340634807,1729566640114,-534.65427157,0.000109,2]
[340634808,1729566640126,-343.13376577,0.000109,2]
[340634809,1729566640137,-3369.45,0.000109,2]
[340634814,1729566640445,-44.98889603,0.000109,2]
[340634815,1729566640457,-61937.69450366,0.000109,2]
[340634816,1729566640466,-1739.6547,0.000109,2]
[340634817,1729566640475,-4020.4472,0.000109,2]
[340634818,1729566640484,-173.72905418,0.000109,2]
[340634819,1729566640493,-220.29265876,0.000109,2]
[340634820,1729566640502,-736.038458,0.000109,2]
[340634821,1729566640511,-172.61,0.00010918,2]
[340634822,1729566640519,-203.26,0.00010959,2]
[340634823,1729566640528,-165.82,0.00010959,2]
[340634824,1729566640539,-171.16,0.00010959,2]
[340634825,1729566640548,-161.46,0.00010959,2]
[340634826,1729566640557,-150.0,0.00010959,2]
[340634827,1729566640566,-214.78971449,0.0001099,2]
[340634828,1729566640576,-214.78971449,0.0001099,2]
[340634829,1729566640585,-500.0,0.00010999,2]
[340634830,1729566640594,-500.0,0.00010999,2]
[340634831,1729566640604,-500.0,0.00010999,2]
[340634832,1729566640613,-500.0,0.00010999,2]
[340634833,1729566640622,-404.19663699,0.00010999,2]
[340634834,1729566640632,-41694.12153028,0.00011,2]
[340634835,1729566640643,-4500.21736811,0.00011,2]
[340634836,1729566640757,-1160.93975803,0.00011,2]
[340634871,1729566643159,-6020.00259753,0.00011,2]
[340634872,1729566643171,-36813.03163764,0.00011,2]
[340634873,1729566643183,-167975.93750219,0.00011,2]
[340634874,1729566643194,-66724.24215512,0.00011,2]
[340634875,1729566643205,-4783.16,0.00011,2]
[340634876,1729566643216,-2755.15634494,0.00011,2]
[340634877,1729566643227,-1866.43796831,0.00011,2]
[340634878,1729566643238,-9245.25,0.00011,2]
[340634879,1729566643250,-435.216782,0.00011,2]
[340634880,1729566643261,-3011.29539032,0.00011,2]
[340634881,1729566643480,-1.68146715,0.00011,2]
[340634882,1729566643491,-3664.28065587,0.00011,2]
[340634883,1729566643502,-4325.67948297,0.00011,2]
[340634884,1729566643514,-1269.05719409,0.00011,2]
[340634885,1729566643526,-12985.68153013,0.00011,2]
[340634886,1729566643537,-4996.95801704,0.00011,2]
[340634887,1729566643624,-2829.58704795,0.00011,2]
[340634889,1729566643635,-511.74477419,0.00011,2]
[340634890,1729566643646,-769.133491,0.00011,2]
[340634891,1729566643657,-500.0,0.00011,2]
[340634893,1729566646082,-444.41876296,0.000109,2]
[340634894,1729566646092,-9574.67755927,0.00011,2]
[340634896,1729566646285,-1301.37556257,0.00011,2]
[340634897,1729566734670,500.0,0.000103,3]
[340634898,1729566736848,1000.0,0.000104,3]
[340634899,1729566738943,1500.0,0.000105,3]
[340634900,1729566741045,2000.0,0.000106,3]
[340634901,1729566743202,2500.0,0.000107,3]
[340634902,1729566745315,500.0,0.000108,3]
[340634903,1729566747421,500.0,0.000109,3]
[340634904,1729566859973,170.96,9.027e-05,2]
[340634905,1729566954418,502.99,9.108e-05,2]
[340634908,1729567331529,786.7,0.0001006,2]
[340634909,1729567346840,250.0,0.0001,2]
[340634910,1729567374009,599.4187424,0.000106,2]
[340634911,1729567406155,-217.175,0.0001064,2]
[340634912,1729567406178,-599.41874238,0.0001065,2]
[340634913,1729567406202,-157.47087685,0.00010699,2]
[340634914,1729567406225,-1384.2207,0.000107,2]
[340634915,1729567406247,-599.41874238,0.000107,2]
[340634916,1729567406269,-27538.67861267,0.000107,2]
[340634917,1729567406293,-217.3855,0.000108,2]
[340634918,1729567406316,-2029.8645,0.000108,2]
[340634919,1729567406339,-1948.635,0.000108,2]
[340634920,1729567406361,-173.331,0.000108,2]
[340634921,1729567406384,-150.0,0.00010899,2]
[340634922,1729567406406,-636.1011,0.000109,2]
[340634923,1729567406429,-213.8018,0.000109,2]
[340634924,1729567406452,-1012.2213,0.000109,2]
[340634925,1729567406474,-11549.2512,0.000109,2]
[340634926,1729567406497,-8867.51890217,0.000109,2]
[340634927,1729567406520,-4543.03004,0.000109,2]
[340634928,1729567406542,-1739.85,0.0001095,2]
[340634929,1729567406566,-183.99,0.00010959,2]
[340634930,1729567406588,-250.0,0.00010994,2]
[340634931,1729567406611,-214.17197391,0.00010999,2]
[340634932,1729567406633,-5784.92645068,0.00010999,2]
[340634933,1729567406657,-500.0,0.00010999,2]
[340634934,1729567406681,-345.76856925,0.00010999,2]
[340634935,1729567406704,-337.09525372,0.00010999,2]
[340634936,1729567406731,-3806.67473599,0.00011,2]
[340634937,1729567421959,-510.0,0.00011,2]
[340634938,1729567452635,170.96,8.793e-05,2]
[340634939,1729567487236,477.84,9.02e-05,2]
[340634940,1729567556372,3560.93157077,6.94e-05,2]
[340634941,1729567589098,250.0,0.00010065,2]
[340634943,1729567612063,8228.58,0.00010062,2]
[340634952,1729567663217,528.08,0.00010078,2]
[340634960,1729567798636,1202.44,0.0001018,2]
[340634961,1729567818818,1595.07,0.00010221,2]
[340634969,1729567832238,-151.65360541,0.00010888,2]
[340634970,1729567832249,-173.72905418,0.000109,2]
[340634971,1729567832259,-914.61734041,0.000109,2]
[340634972,1729567832270,-2381.48970547,0.000109,2]
[340634973,1729567832394,-784.65653678,0.000109,2]
[340634974,1729567832406,-2130.44985288,0.000109,2]
[340634975,1729567832417,-827.13712285,0.000109,2]
[340634976,1729567832428,-517.85511205,0.000109,2]
[340634977,1729567832439,-424.56134154,0.000109,2]
[340634978,1729567832449,-642.00297572,0.000109,2]
[340634979,1729567832460,-462.2706055,0.000109,2]
[340634980,1729567832469,-407.91151203,0.000109,2]
[340634981,1729567832478,-152.70615193,0.000109,2]
[340634982,1729567832487,-200.0,0.0001093,2]
[340634983,1729567832497,-1852.42,0.00010935,2]
[340634984,1729567832506,-150.0,0.00010938,2]
[340634985,1729567832515,-5561.99,0.00010939,2]
[340634986,1729567832524,-155.4,0.00010955,2]
[340634987,1729567832533,-18834.56,0.00010955,2]
[340634988,1729567832542,-533.32,0.00010956,2]
[340634989,1729567832552,-4244.61,0.00010956,2]
[340634991,1729567832561,-12534.82,0.00010956,2]
[340634993,1729567832570,-250.0,0.00010957,2]
[340634995,1729567832580,-3161.95,0.00010959,2]
[340634997,1729567832589,-499.99,0.00010959,2]
[340634999,1729567832599,-150.99,0.00010959,2]
[340635001,1729567832608,-164.69,0.00010959,2]
[340635003,1729567832619,-750.94,0.00010959,2]
[340635005,1729567832628,-358.3,0.0001096,2]
[340635008,1729567832638,-17629.13173054,0.00011,2]
[340635010,1729567832651,-2909.42136035,0.00011,2]
[340635012,1729567832662,-11182.53393713,0.00011,2]
[340635014,1729567832673,-696.63711264,0.00011,2]
[340635017,1729567832683,-33737.09403308,0.00011,2]
[340635018,1729567832694,-482.73538408,0.00011,2]
[340635020,1729567832704,-4787.60419941,0.00011,2]
[340635023,1729567832715,-785.42033485,0.00011,2]
[340635025,1729567832729,-21347.0306,0.00011,2]
[340635027,1729567832740,-616002.2714912,0.00011,2]
[340635029,1729567832752,-148812.1225,0.00011,2]
[340635066,1729567838254,-265.6975239,0.00011,2]
[340635067,1729567838265,-1258.2343,0.00011,2]
[340635068,1729567838406,-9649.36776897,0.00011,2]
[340635069,1729567838417,-1001.36523438,0.00011,2]
[340635070,1729567838429,-1803.988746,0.00011,2]
[340635071,1729567838559,-12204.054775,0.00011,2]
[340635078,1729567840232,-1472.07691596,0.000109,2]
[340635079,1729567840246,-3205.20322342,0.00011,2]
[340635080,1729567840525,-561.22489336,0.00011,2]
[340635090,1729567846248,-24365.2399,0.00011,2]
[340635091,1729567846264,-8400.0,0.00011,2]
[340635092,1729567986248,453.94,9.194e-05,2]
[340635094,1729568373683,164.41,0.00010233,2]
[340635095,1729568471617,2079.61,0.00010247,2]
[340635096,1729568480930,14066.52968683,0.00010247,2]
[340635097,1729568480960,9833.47031317,0.00010247,2]
[340635098,1729568495233,172.61,0.00010264,2]
[340635099,1729568496544,336.55,0.00010346,2]
[340635100,1729568502013,250.0,0.00010298,2]
[340635101,1729568577203,200.0,0.00010293,2]
[340635102,1729568606744,431.24,8.4e-05,2]
[340635103,1729568609571,4035.32,0.00010311,2]
[340635104,1729568669822,500.0,0.00010047,2]
[340635105,1729568735685,200.0,9.995e-05,2]
[340635106,1729568783896,1703.0034015,0.00010572,2]
[340635114,1729568833981,1852.42,9.986e-05,2]
[340635124,1729568974136,1039.8,0.00010006,2]
[340635127,1729569029252,12210.82628533,0.00010567,2]
[340635135,1729569032118,-1813.23272745,0.00010567,2]
[340635136,1729569032225,-1244.37019934,0.00010567,2]
[340635137,1729569032332,-1140.57078788,0.00010567,2]
[340635138,1729569032343,-431.24,0.00010663,2]
[340635139,1729569032353,-300.0,0.00010672,2]
[340635140,1729569032362,-1500.0,0.00010746,2]
[340635141,1729569032372,-150.0,0.00010767,2]
[340635142,1729569032382,-1038.91773638,0.0001078,2]
[340635176,1729569038304,-519.99026362,0.0001078,2]
[340635177,1729569038313,-173.33127392,0.0001078,2]
[340635178,1729569038324,-1500.0,0.0001078,2]
[340635179,1729569038333,-1500.0,0.00010797,2]
[340635180,1729569038342,-1500.0,0.00010802,2]
[340635181,1729569038351,-316.73944685,0.00010803,2]
[340635182,1729569038363,-1183.26055315,0.00010803,2]
[340635183,1729569038372,-250.0,0.00010827,2]
[340635184,1729569038381,-1500.0,0.00010838,2]
[340635185,1729569038392,-499.99,0.00010838,2]
[340635186,1729569038401,-1439.05406125,0.00010853,2]
[340635187,1729569038411,-1500.0,0.00010864,2]
[340635188,1729569038420,-1500.0,0.00010873,2]
[340635189,1729569038430,-1500.0,0.00010879,2]
[340635190,1729569038439,-150.0,0.00010899,2]
[340635191,1729569038448,-8742.38625253,0.000109,2]
[340635192,1729569038457,-173.72905418,0.000109,2]
[340635193,1729569038466,-1500.0,0.00010912,2]
[340635194,1729569038481,-1500.0,0.00010925,2]
[340635195,1729569038490,-171.09,0.00010959,2]
[340635196,1729569038500,-250.0,0.00010959,2]
[340635197,1729569038509,-171.16,0.00010959,2]
[340635198,1729569038518,-642.21,0.00010959,2]
[340635199,1729569038527,-1500.0,0.00010965,2]
[340635200,1729569038536,-200.466583,0.0001099,2]
[340635201,1729569038545,-3809.79783676,0.00010999,2]
[340635202,1729569038554,-235.96667761,0.00010999,2]
[340635203,1729569038563,-500.0,0.00010999,2]
[340635204,1729569038572,-500.0,0.00010999,2]
[340635205,1729569038581,-341.28640308,0.00010999,2]
[340635206,1729569038590,-500.0,0.00010999,2]
[340635207,1729569038599,-500.0,0.00010999,2]
[340635208,1729569038608,-500.0,0.00010999,2]
[340635209,1729569038617,-500.0,0.00010999,2]
[340635210,1729569038627,-500.0,0.00010999,2]
[340635211,1729569038636,-500.0,0.00010999,2]
[340635212,1729569038647,-377.32639712,0.00010999,2]
[340635213,1729569038656,-500.0,0.00010999,2]
[340635214,1729569038666,-500.0,0.00010999,2]
[340635215,1729569038675,-500.0,0.00010999,2]
[340635216,1729569038685,-500.0,0.00010999,2]
[340635217,1729569038693,-500.0,0.00010999,2]
[340635218,1729569038703,-500.0,0.00010999,2]
[340635219,1729569038712,-500.0,0.00010999,2]
[340635220,1729569038720,-500.0,0.00010999,2]
[340635221,1729569038729,-563.65296218,0.00010999,2]
[340635222,1729569038738,-632.0,0.00011,2]
[340635223,1729569038747,-22700.47229914,0.00011,2]
[340635224,1729569038759,-4943.44331548,0.00011,2]
[340635225,1729569038770,-599.2800009,0.00011,2]
[340635226,1729569038780,-1508.57123451,0.00011,2]
[340635227,1729569038791,-35280.02733317,0.00011,2]
[340635229,1729569040223,-2170.37864793,0.00011,2]
[340635230,1729569040367,-1908.199995,0.00011,2]
[340635231,1729569040379,-10432.9189482,0.00011,2]
[340635232,1729569040392,-1406.98951982,0.00011,2]
[340635237,1729569044027,150.0,0.000125,3]
[340635246,1729569044218,-1829.909999,0.00011,2]
[340635247,1729569044317,-2470.72892504,0.00011,2]
[340635248,1729569044428,-2217.0649988,0.00011,2]
[340635249,1729569044458,-111561.04406144,0.00011,2]
[340635251,1729569046170,-565.0,0.00011,2]
[340635252,1729569046180,-798.81406113,0.00011,2]
[340635253,1729569046409,-2952.86211297,0.00011,2]
[340635254,1729569046435,-9210.43193781,0.00011,2]
[340635255,1729569155766,250.0,0.0001,2]
[340635256,1729569172522,436.95,8.955e-05,2]
[340635257,1729569183715,113.05,0.00010369,2]
[340635258,1729569183735,800.0,0.00010369,2]
[340635259,1729569183756,86.95,0.00010369,2]
[340635260,1729569278257,500.0,0.00010382,2]
[340635285,1729569474274,213.05,0.00010402,2]
[340635286,1729569474294,470.62,0.00010402,2]
[340635287,1729569636462,329.38,0.00010399,2]
[340635288,1729569636484,800.0,0.00010399,2]
[340635289,1729569636506,800.0,0.00010399,2]
[340635290,1729569636528,800.0,0.00010399,2]
[340635291,1729569636550,800.0,0.00010399,2]
[340635292,1729569636570,800.0,0.00010399,2]
[340635293,1729569636592,800.0,0.00010399,2]
[340635294,1729569636612,800.0,0.00010399,2]
[340635295,1729569636637,17970.62,0.00010399,2]
[340635296,1729569856434,415.1,9.083e-05,2]
[340635313,1729570232296,-685.264611,0.00010844,2]
[340635314,1729570232306,-150.0,0.00010899,2]
[340635315,1729570232315,-300.0,0.00010899,2]
[340635316,1729570232325,-638.831892,0.000109,2]
[340635317,1729570232334,-355.2253462,0.000109,2]
[340635318,1729570232346,-607.2010538,0.000109,2]
[340635319,1729570232355,-964.67852007,0.000109,2]
[340635320,1729570232367,-7364.30568255,0.000109,2]
[340635321,1729570232399,-986.37026485,0.000109,2]
[340635322,1729570232558,-682.49820459,0.000109,2]
[340635323,1729570232569,-277.62159607,0.000109,2]
[340635324,1729570238461,-4844.914274,0.000109,2]
[340635325,1729570238515,-575.61,0.000109,2]
[340635326,1729570238527,-782.53154917,0.000109,2]
[340635327,1729570238538,-276.73994888,0.000109,2]
[340635328,1729570238779,-16433.61065982,0.000109,2]
[340635329,1729570238788,-248.3895,0.000109,2]
[340635330,1729570238797,-8654.82047987,0.000109,2]
[340635331,1729570238807,-150.21,0.00010953,2]
[340635332,1729570238816,-272.81,0.00010959,2]
[340635333,1729570238825,-165.21,0.00010959,2]
[340635334,1729570238834,-150.21,0.00010959,2]
[340635335,1729570238843,-150.21,0.00010966,2]
[340635336,1729570238852,-150.21,0.00010973,2]
[340635337,1729570238861,-1000.0,0.00010979,2]
[340635338,1729570238870,-150.21,0.0001098,2]
[340635339,1729570238879,-150.21,0.00010987,2]
[340635341,1729570238889,-179.38,0.00010991,2]
[340635343,1729570238898,-150.21,0.00010994,2]
[340635345,1729570238907,-341.83,0.00010996,2]
[340635347,1729570238918,-494.58179381,0.00010999,2]
[340635348,1729570238927,-165.17667432,0.00010999,2]
[340635350,1729570238935,-500.0,0.00010999,2]
[340635352,1729570238944,-491.21562535,0.00010999,2]
[340635354,1729570238954,-500.0,0.00010999,2]
[340635356,1729570238963,-513.0,0.00011,2]
[340635358,1729570238972,-499.99,0.00011,2]
[340635360,1729570238982,-40708.20077545,0.00011,2]
[340635369,1729570240451,-88921.6210081,0.00011,2]
[340635370,1729570240558,-1982.583,0.00011,2]
[340635374,1729570246267,-38136.52955688,0.00011,2]
[340635375,1729570246372,-11483.76718917,0.00011,2]
[340635376,1729570246532,-12157.2099494,0.00011,2]
[340635377,1729570246544,-3587.7047,0.00011,2]
[340635378,1729570352542,476.28,9.13e-05,2]
[340635379,1729570811550,250.0,0.0001023,2]
[340635380,1729570844061,73.72,0.00010262,2]
[340635381,1729570844083,726.28,0.00010262,2]
[340635382,1729570858148,73.72,8.333e-05,2]
[340635383,1729570858168,378.74,8.333e-05,2]
[340635384,1729570878951,200.0,0.00010182,2]
[340635385,1729570886139,221.26,0.00010182,2]
[340635386,1729570886158,800.0,0.00010182,2]
[340635387,1729570886176,800.0,0.00010182,2]
[340635388,1729570886196,31.16,0.00010182,2]
[340635389,1729570970000,250.0,0.0001,2]
[340635390,1729571053458,468.38,0.00010245,2]
[340635391,1729571120249,50.46,9e-05,2]
[340635392,1729571120268,800.0,9e-05,2]
[340635393,1729571120287,800.0,9e-05,2]
[340635394,1729571120308,800.0,9e-05,2]
[340635395,1729571120327,800.0,9e-05,2]
[340635396,1729571120346,800.0,9e-05,2]
[340635397,1729571120368,2889.05612056,9e-05,2]
[340635398,1729571130038,11271.05375067,0.000101,2]
[340635410,1729571279490,10821.38227215,0.0001,2]
[340635411,1729571285590,250.0,0.00010184,2]
[340635412,1729571319343,219.90274271,0.0001016,2]
[340635413,1729571319364,30.09725729,0.0001016,2]
[340635414,1729571376058,23900.0,0.00010185,2]
[340635415,1729571404776,200.0,0.0001025,2]
[340635416,1729571412892,170.57725729,8.287e-05,2]
[340635417,1729571412915,259.25274271,8.287e-05,2]
[340635418,1729571430916,8769.41,0.00010305,2]
[340635428,1729571431509,-429.83,0.0001055,2]
[340635429,1729571431518,-550.0,0.00010779,2]
[340635430,1729571431528,-3622.0,0.00010781,2]
[340635431,1729571431537,-1009.0,0.000108,2]
[340635432,1729571431546,-12970.98654347,0.0001088,2]
[340635433,1729571431557,-262.70659263,0.0001088,2]
[340635434,1729571431567,-3036.88269153,0.0001088,2]
[340635435,1729571431576,-622.38222111,0.0001089,2]
[340635436,1729571431587,-71.12177889,0.0001089,2]
[340635437,1729571431596,-150.0,0.00010899,2]
[340635438,1729571431605,-2507.0153,0.000109,2]
[340635439,1729571431614,-4693.2889,0.000109,2]
[340635440,1729571431623,-159.9109,0.000109,2]
[340635441,1729571431632,-3186.81723176,0.000109,2]
[340635442,1729571431645,-5878.65131395,0.000109,2]
[340635443,1729571431654,-1006.0,0.000109,2]
[340635444,1729571431663,-166.00503113,0.000109,2]
[340635445,1729571431673,-1651.0,0.000109,2]
[340635446,1729571431683,-203.57418326,0.000109,2]
[340635447,1729571431691,-164.69,0.00010959,2]
[340635448,1729571431700,-150.0,0.00010959,2]
[340635449,1729571431709,-250.0,0.00010959,2]
[340635450,1729571431718,-504.31643512,0.00010973,2]
[340635451,1729571431727,-503.4847512,0.00010973,2]
[340635452,1729571431736,-1631.694,0.00010973,2]
[340635453,1729571431745,-915.71,0.00010973,2]
[340635454,1729571431754,-499.99,0.0001099,2]
[340635455,1729571431763,-200.46658299,0.0001099,2]
[340635456,1729571431772,-1007.87819412,0.00010992,2]
[340635457,1729571431886,-11563.4739607,0.00010993,2]
[340635458,1729571431898,-2447.6072363,0.00010993,2]
[340635459,1729571431907,-517.9579061,0.00010993,2]
[340635460,1729571431917,-610.9875306,0.00010993,2]
[340635462,1729571431926,-8568.2189414,0.00010993,2]
[340635464,1729571431937,-247.29089691,0.00010999,2]
[340635466,1729571431946,-165.69062504,0.00010999,2]
[340635467,1729571431955,-24627.45722636,0.00011,2]
[340635468,1729571431974,-1396.35356278,0.00011,2]
[340635469,1729571431985,-2195.73008022,0.00011,2]
[340635470,1729571431997,-7703.13545526,0.00011,2]
[340635471,1729571432008,-1440.43885463,0.00011,2]
[340635472,1729571432023,-7148.74963332,0.00011,2]
[340635473,1729571432033,-420.98804803,0.00011,2]
[340635474,1729571432044,-2306.66543023,0.00011,2]
[340635475,1729571432055,-450.20561242,0.00011,2]
[340635476,1729571432066,-3556.70898784,0.00011,2]
[340635477,1729571432077,-387.17470319,0.00011,2]
[340635478,1729571432087,-1329.28402773,0.00011,2]
[340635485,1729571437740,-60160.779124,0.00011,2]
[340635486,1729571437796,-1086.12888918,0.00011,2]
[340635487,1729571437855,-9972.99338896,0.00011,2]
[340635488,1729571437915,-8025.39680953,0.00011,2]
[340635491,1729571439616,-581.71951732,0.00011,2]
[340635492,1729571439732,-1086.34670665,0.00011,2]
[340635493,1729571439743,-49673.26008588,0.00011,2]
[340635494,1729571439755,-13471.04236971,0.00011,2]
[340635533,1729571442536,-5984.24164526,0.00011,2]
[340635534,1729571442547,-426.29565446,0.00011,2]
[340635535,1729571442593,-15721.75674677,0.00011,2]
[340635536,1729571442604,-10797.29872224,0.00011,2]
[340635537,1729571442652,-330.5,0.00011,2]
[340635538,1729571442663,-2998.20575189,0.00011,2]
[340635539,1729571442819,-361.01292754,0.00011,2]
[340635541,1729571445780,-459.20694377,0.00011,2]
[340635544,1729571458603,11522.0,0.000103,5]
[340635546,1729571681208,173.15,0.00010322,2]
[340635547,1729571725715,626.85,0.000104,2]
[340635548,1729571725734,170.63,0.000104,2]
[340635549,1729571742361,629.37,0.00010318,2]
[340635550,1729571742381,800.0,0.00010318,2]
[340635551,1729571742402,423.05,0.00010318,2]
[340635552,1729571852066,250.0,0.00010316,2]
[340635553,1729571873011,226.95,0.00010316,2]
[340635554,1729571873033,23.05,0.00010316,2]
[340635555,1729571878021,23900.0,0.00010316,2]
[340635556,1729571926415,200.0,0.00010293,2]
[340635557,1729571933498,520.39,8.375e-05,2]
[340635558,1729572074119,316.07,0.00010308,2]
[340635559,1729572136950,1838.22,0.00010331,2]
[340635560,1729572209108,275.06,0.00010352,2]
[340635561,1729572227038,1000.0,0.00010376,2]
[340635562,1729572245446,167.82,0.00010376,2]
[340635563,1729572363656,250.0,0.00010402,2]
[340635564,1729572382861,23900.0,0.00010373,2]
[340635565,1729572424489,250.0,0.00010373,2]
[340635569,1729572434976,494.37,8.484e-05,2]
[340635572,1729572479894,1345.13,0.00010378,2]
[340635573,1729572480106,1345.13,0.00010381,2]
[340635574,1729572480329,1345.13,0.00010384,2]
[340635575,1729572480528,1345.13,0.00010387,2]
[340635576,1729572480743,1345.13,0.00010389,2]
[340635577,1729572481169,1345.13,0.00010392,2]
[340635578,1729572481387,1345.13,0.00010395,2]
[340635579,1729572481589,1345.13,0.00010398,2]
[340635580,1729572481823,1345.13,0.000104,2]
[340635581,1729572482043,1345.13,0.00010403,2]
[340635582,1729572482252,1345.13,0.00010406,2]
[340635583,1729572483471,-1345.13,0.00010409,2]
[340635584,1729572484103,-1345.13,0.00010411,2]
[340635585,1729572489089,-1345.13,0.00010414,2]
[340635586,1729572490770,-1345.13,0.00010417,2]
[340635587,1729572492248,-1345.13,0.0001042,2]
[340635588,1729572493240,-1345.13,0.00010422,2]
[340635589,1729572495679,-1345.13,0.00010425,2]
[340635594,1729572522470,1803.65796,0.00010375,2]
[340635613,1729572631655,-1345.13,0.00010428,2]
[340635614,1729572631664,-1345.13,0.00010431,2]
[340635615,1729572631674,-158.03,0.0001062,2]
[340635616,1729572631684,-494.37,0.00010748,2]
[340635617,1729572631693,-150.0,0.00010899,2]
[340635618,1729572631702,-917.4451,0.000109,2]
[340635619,1729572631711,-7012.3852,0.000109,2]
[340635620,1729572631720,-500.4755,0.000109,2]
[340635621,1729572631729,-3325.8329,0.000109,2]
[340635622,1729572631738,-290.3734,0.000109,2]
[340635623,1729572631747,-173.96174469,0.000109,2]
[340635624,1729572631756,-6051.10901081,0.000109,2]
[340635625,1729572631766,-407.1483665,0.000109,2]
[340635626,1729572631774,-171.09,0.00010959,2]
[340635627,1729572631784,-250.0,0.00010959,2]
[340635628,1729572631794,-165.21,0.00010959,2]
[340635629,1729572631805,-179.38,0.00010976,2]
[340635630,1729572631816,-250.52,0.00010981,2]
[340635631,1729572631825,-1452.603,0.00010981,2]
[340635632,1729572631835,-6730.3861621,0.00010993,2]
[340635633,1729572631847,-322.838527,0.00010993,2]
[340635634,1729572631857,-12606.1857059,0.00010993,2]
[340635635,1729572631866,-1925.2002691,0.00010993,2]
[340635636,1729572631875,-509.1562762,0.00010993,2]
[340635637,1729572631885,-247.2908969,0.00010999,2]
[340635638,1729572631896,-499.99,0.00010999,2]
[340635639,1729572631907,-150.0,0.00010999,2]
[340635640,1729572631915,-151.62420157,0.00010999,2]
[340635641,1729572631925,-358.31732042,0.00010999,2]
[340635642,1729572631936,-181.00110756,0.00010999,2]
[340635643,1729572631947,-468.03,0.00010999,2]
[340635644,1729572631955,-519.0,0.00011,2]
[340635645,1729572631966,-249915.90509205,0.00011,2]
[340635646,1729572631977,-508.47198714,0.00011,2]
[340635647,1729572631992,-12065.35980153,0.00011,2]